Cogmind - Beta 15 @@@ ROGUE MODE // 2025.07.17 @ 02:29:09 Player: Cracklepappy Result: Destroyed by P-60 Hacker with Shock Rifle Performance ------------- Evolutions (2) 1000 Regions Visited (12) 2400 Robots Destroyed (306) 1530 Value Destroyed (9646) 9646 Prototype IDs (47) 940 Alien Tech Used (0) 0 Bonus (4403) 4403 TOTAL SCORE: 19919 Bonus ------- High Alert Combat Kills 2212 Follower Combat Kills 543 Entered Garrisons 600 Used RIF Installer 1000 Aligned with FarCom 300 Friendly Fire -252 Cogmind --------- Core Integrity 0/550 Matter 250/300 Energy 310/310 System Corruption 15% Temperature Cool (0) Movement Rolling (150) Ox4 Location -8/Garrison Parts ------- > --- POWER (1) -------- Reinforced Fission Core (fused) > --- PROPULSION (2) --- Armored Wheel Armored Wheel > --- UTILITY (4) ------ Experimental Heat Sink (fused) Huge Storage Unit Experimental Targeting Computer Powered Armor > --- WEAPON (4) ------- Heavy Assault Rifle Heavy Assault Rifle Autogun > --- INVENTORY (25) --- Armored Wheel Armored Wheel High-capacity Matter Pod (0) 0b10 Alert Chip Improved Salvage Targeting Computer Experimental Core Analyzer Recoil Stabilizer Cloak of Protection Medium Reactive Plating Powered Armor Powered Armor Powered Armor Hacking Suite Authchip [R/NC] Relay Coupler [NC] (34) High-powered Tractor Beam Improved Trap Extractor (5/6 Dirty Bomb) Latent Energy Streamer Heavy Assault Rifle Heavy Assault Rifle Heavy Assault Rifle Remote Datajack Plasma Cutter Spear Deploy-a-Sentry Peak State ------------ > --- POWER ------------ Reinforced Fission Core > --- PROPULSION ------- Armored Wheel Armored Wheel > --- UTILITY ---------- Huge Storage Unit Experimental Targeting Computer Improved Target Analyzer Hardened Medium Armor Plating > --- WEAPON ----------- Enhanced Autogun Enhanced Autogun 8R-AWN's Boregun 8R-AWN's Boregun > --- INVENTORY -------- Armored Wheel Armored Wheel Experimental Heat Sink High-capacity Matter Pod 0b10 Alert Chip Experimental Core Analyzer Recoil Stabilizer Cloak of Protection Hardened Medium Armor Plating Hacking Suite Authchip [R/NC] Relay Coupler [NC] High-powered Tractor Beam Improved Trap Extractor Advanced Recalibrator Precision Beam Rifle Latent Energy Streamer Heavy Assault Rifle Heavy Assault Rifle Heavy Assault Rifle Enhanced Autogun Remote Datajack Plasma Cutter Chainsword Deploy-a-Sentry [Rating: 63] Favorites ----------- Power Heavy Ion Engine Engine Heavy Ion Engine Power Core Reinforced Fission Core Reactor Cold Fusion Reactor Propulsion Armored Wheel Wheel Armored Wheel Utility Huge Storage Unit Device Hardlight Generator Storage Huge Storage Unit Processor Improved Target Analyzer Hackware Relay Coupler [NC] Protection Hardened Light Armor Plating Weapon Heavy Assault Rifle Energy Gun EM Shotgun Energy Cannon Ion Cannon Ballistic Gun Heavy Assault Rifle Ballistic Cannon Improved Light Cannon Launcher Missile Launcher Special Weapon Plasma Cutter Impact Weapon Great Maul Slashing Weapon Chainsword Piercing Weapon Spear Special Melee Weapon Datajack Build | -11 -10 -10 -9 -9 -9 -8 -8 -8 -8 -8 -8 -8 ------- Run | Yrd Mat Min Mat Min Exi Min Mat Gar Mat Gar Mat Gar Slots Evolved 4 | . . . 2 . . . 2 . . . . . Power . | . . . . . . . . . . . . . Propulsion . | . . . . . . . . . . . . . Utility 2 | . . . . . . . 2 . . . . . Weapon 2 | . . . 2 . . . . . . . . . Parts Attached 126 | 7 16 4 18 2 16 4 20 6 7 4 6 16 Power 9 | 1 2 . 2 . 1 1 1 . 1 . . . Engine 6 | 1 2 . 2 . 1 . . . . . . . Core 2 | . . . . . . 1 . . 1 . . . Reactor 1 | . . . . . . . 1 . . . . . Propulsion 14 | 2 4 . 1 . 3 . 1 . . 1 1 1 Treads . | . . . . . . . . . . . . . Leg . | . . . . . . . . . . . . . Wheel 14 | 2 4 . 1 . 3 . 1 . . 1 1 1 Hover . | . . . . . . . . . . . . . Flight . | . . . . . . . . . . . . . Utility 35 | 2 4 1 2 2 3 . 7 1 2 2 2 7 Device 12 | 1 1 1 . 1 1 . 4 . . . . 3 Storage 6 | 1 2 . 1 . 1 . . . . . 1 . Processor 2 | . . . . . . . 1 . 1 . . . Hackware 3 | . . . . . . . . . . . 1 2 Protection 12 | . 1 . 1 1 1 . 2 1 1 2 . 2 Artifact . | . . . . . . . . . . . . . Weapon 68 | 2 6 3 13 . 9 3 11 5 4 1 3 8 Energy Gun 7 | 1 3 1 . . . . 1 . . . . 1 Energy Cannon 4 | . . 2 . . . . 2 . . . . . Ballistic Gun 48 | 1 3 . 13 . 6 2 8 3 3 1 2 6 Ballistic Cannon 1 | . . . . . . . . . 1 . . . Launcher 1 | . . . . . 1 . . . . . . . Special Weapon 2 | . . . . . . . . 1 . . 1 . Impact Weapon 1 | . . . . . 1 . . . . . . . Slashing Weapon 2 | . . . . . . 1 . 1 . . . . Piercing Weapon 1 | . . . . . . . . . . . . 1 Special Melee Weapon 1 | . . . . . 1 . . . . . . . Unidentified Prototypes 4 | . 1 1 . . . . 2 . . . . . Parts Lost 24 | . 1 . . . 10 . 2 . 1 4 . 6 Power 1 | . . . . . . . 1 . . . . . Propulsion 5 | . 1 . . . 3 . . . . 1 . . Utility 3 | . . . . . . . 1 . . 1 . 1 Weapon 15 | . . . . . 7 . . . 1 2 . 5 Highest Loss Streak 6 | . 1 . . . 6 . 1 . 1 3 . 4 To Critical Strikes 7 | . . . . . 7 . . . . . . . Average Backups 21 | 5 14 14 21 25 18 24 23 24 23 23 23 23 Power 1 | 1 1 1 . 1 1 2 1 1 . . . . Propulsion 2 | 2 4 3 2 3 2 . 1 2 2 1 1 2 Utility 8 | . 3 3 6 6 5 12 10 10 11 12 13 13 Weapon 8 | . 5 6 10 12 9 8 9 8 7 6 7 6 Tool/Special . | . . . . . . . . . . . . . Unused Backups 86 | . 11 3 12 . 10 1 13 3 . 2 5 26 Power 5 | . 1 . . . 3 . . . . . . 1 Propulsion 10 | . 4 . . . . 1 1 . . . . 4 Utility 39 | . 2 1 4 . 7 . 6 1 . 2 2 14 Weapon 29 | . 4 2 7 . . . 6 2 . . 3 5 Tool/Special 3 | . . . 1 . . . . . . . . 2 Average Slot Usage (%) 95 | . 99 100 99 100 73 100 99 100 100 96 100 99 Engine 6 | . 14 14 11 11 11 5 . . . . . . Core 2 | . . . . . . 5 4 . 4 9 9 9 Reactor 1 | . . . . . . . 4 9 4 . . . Wheel 20 | . 27 28 22 22 20 22 17 18 18 15 18 18 Device 2 | . 9 . . . . . 9 1 . . . 8 Storage 11 | . 14 14 11 11 14 11 9 9 9 9 9 9 Processor 4 | . . . . . . . 8 9 11 18 17 9 Protection 9 | . 4 14 11 10 7 11 8 16 15 8 8 9 Energy Gun 2 | . 18 17 . . . . . . . . . . Energy Cannon 1 | . . 10 . . . . 4 . . . . . Ballistic Gun 29 | . 9 . 43 44 15 41 31 34 36 35 35 33 Peak Build Rating 63 | 7 14 25 26 28 42 38 59 48 47 63 49 52 Average Rating 33 | 5 11 15 23 26 19 37 44 46 44 57 47 48 On Entrance 31 | . 7 14 17 26 26 42 38 45 46 47 48 48 Naked Turns . | . . . . . . . . . . . . . Heaviest Build 127 | 13 37 43 105 105 113 110 123 117 123 127 121 127 Greatest Support 24 | 20 22 22 24 24 24 24 24 24 24 24 24 24 Greatest Overweight (x) 10 | . 1 1 4 4 8 4 5 4 5 10 5 5 Average Overweight (x) 3 | . . 1 3 4 3 4 4 4 4 6 4 4 Largest Inventory Capacity 25 | 8 15 15 25 25 25 25 25 25 25 25 25 25 Average Capacity 23 | 7 14 15 22 25 25 25 25 25 25 25 25 25 Most Carried 25 | 8 15 15 25 25 25 25 25 25 25 25 25 25 Average Carried 22 | 5 14 14 21 24 18 24 24 24 24 24 24 24 Final Capacity 25 | 8 15 15 25 25 25 25 25 25 25 25 25 25 Final Carried 25 | 8 15 15 25 25 25 25 25 25 25 24 25 25 Class Distribution -------------------- 36% | Tank 23% | Mutant 18% | Scavenger-Gunner 13% | Gunner 5% | Scavenger-Tank Dominant Class ---------------- Mutant | -10/Materials Mutant | -10/Mines Tank | -9/Materials Tank | -9/Mines Mutant | -9/Exiles Tank | -8/Mines Tank | -8/Materials Scavenger-Tank | -8/Garrison Scavenger-Tank | -8/Materials Scavenger-Gunner | -8/Garrison Scavenger-Gunner | -8/Materials Scavenger-Gunner | -8/Garrison Resources | -11 -10 -10 -9 -9 -9 -8 -8 -8 -8 -8 -8 -8 ----------- Run | Yrd Mat Min Mat Min Exi Min Mat Gar Mat Gar Mat Gar Matter Collected 10555 | 303 581 60 1138 241 1177 629 1567 928 430 1148 813 1540 Remotely . | . . . . . . . . . . . . . Salvage Created 12236 | 222 689 201 1413 327 568 690 2528 1005 557 1585 1016 1435 Parts 796 | 26 53 16 96 19 70 66 143 38 34 101 65 69 Haulers Intercepted 15 | . 2 . 6 . . . 5 . 1 . 1 . Recyclers Shooed 7 | . 2 2 . . . . . . 2 . 1 . Parts Field Recycled . | . . . . . . . . . . . . . Retrieved Matter . | . . . . . . . . . . . . . Parts Self-Destructed . | . . . . . . . . . . . . . Prevented . | . . . . . . . . . . . . . Kills | -11 -10 -10 -9 -9 -9 -8 -8 -8 -8 -8 -8 -8 ------- Run | Yrd Mat Min Mat Min Exi Min Mat Gar Mat Gar Mat Gar Combat Hostiles Destroyed 213 | . 16 5 16 8 6 14 40 23 6 35 16 28 Guns 196 | . 13 2 16 8 2 14 33 23 6 35 16 28 Cannons 10 | . . 3 . . . . 7 . . . . . AOE 7 | . 3 . . . 4 . . . . . . . Classes Destroyed 22 | 3 6 . 3 1 2 . 2 2 . 1 . 2 Worker 15 | 1 1 1 3 1 . 4 3 . . . 1 . Builder 12 | . 1 1 4 1 . 2 2 . . . 1 . Tunneler 14 | 5 . . 1 . . 7 . . . . 1 . Hauler 16 | . 2 . 6 . . . 5 . 1 . 2 . Recycler 12 | 1 2 . 1 1 . 2 2 . 2 . 1 . Mechanic 3 | . 1 . 1 . . . 1 . . . . . Operator 3 | . . . 1 . . . . . . . 2 . Turret 1 | . . . . . 1 . . . . . . . Watcher 9 | . 2 . 3 . . . 2 . 1 . 1 . Swarmer 59 | . 11 3 5 1 . 14 7 5 . 10 3 . Grunt 82 | . 5 2 7 3 . . 20 12 1 14 10 8 Brawler 6 | . . . . . . . 3 1 . . . 2 Duelist 9 | . . . 1 2 . . 1 2 . . 1 2 Protector 1 | . . . . . . . . . . . . 1 Sentry 32 | . . . 4 . . . 8 3 4 5 2 6 Demolisher 2 | . . . . . . . . 1 . . . 1 Specialist 1 | . . . . . . . . . . 1 . . Hunter 3 | . . . . . . . 1 . 1 . . 1 Programmer 12 | . . . . . . . . 1 . 5 . 6 Behemoth 1 | . . . . . . . . . . . . 1 Zionite 8 | . . . . . 8 . . . . . . . Assembled 7 | . . . . 2 5 . . . . . . . Thug 2 | . . . 2 . . . . . . . . . Best Kill Streak 7 | 4 5 3 6 3 6 5 6 3 4 5 7 6 Combat Bots Only 7 | . 5 3 4 2 5 4 4 3 2 5 7 6 Max Kills in Single Turn 4 | 1 4 1 2 2 1 3 2 2 2 2 2 2 Gunslinging 2 | . 1 . . . . 2 . 1 . 1 1 1 Exploded 3 | . 3 . . . 1 . . . . . . . Melee . | . . . . . . . . . . . . . Uniques/NPCs Destroyed 4 | . . . . . 4 . . . . . . . 8R-AWN (-9/Exiles) EX-BIN (-9/Exiles) EX-DEC (-9/Exiles) EX-HEX (-9/Exiles) Combat | -11 -10 -10 -9 -9 -9 -8 -8 -8 -8 -8 -8 -8 -------- Run | Yrd Mat Min Mat Min Exi Min Mat Gar Mat Gar Mat Gar Hostile Shots Fired 758 | . 70 18 49 9 123 34 135 52 34 80 51 103 Missed 191 | . 22 8 12 6 20 15 33 15 4 13 15 28 Hits 567 | . 48 10 37 3 103 19 102 37 30 67 36 75 Melee 2 | . . . . . 1 . . 1 . . . . Projectile 565 | . 48 10 37 3 102 19 102 36 30 67 36 75 AOE 2 | . . . . . . . . . . . . 2 Critical Strikes 59 | . . . 2 . 45 1 4 1 . 2 1 3 Part Disruptions 1 | . . . . . . . . . . . . 1 Damage Taken 8160 | . 528 90 553 34 1686 153 1239 394 480 886 532 1585 Core 940 | . 107 19 72 10 161 10 153 62 33 124 33 156 Absorbed by Shields 338 | . . . . . 125 . 173 40 . . . . Redirected to Shielding 50 | . . . . . . . . 9 41 . . . Regen/Repaired (Parts) 229 | . . . . . . . 148 . . . 81 . Core Remaining (%) 61 | 100 . 49 . . . 36 . . . . . . Volleys Fired 678 | 11 67 15 68 13 111 21 104 48 26 56 49 89 Largest 4 | 2 2 2 4 4 4 4 4 4 4 4 4 4 Hottest 166 | 70 90 126 92 92 92 92 166 101 99 110 98 109 Shots Fired 2174 | 22 121 30 271 52 244 84 416 185 103 218 171 257 Gun 2046 | 22 121 20 271 52 238 84 343 185 103 218 163 226 Cannon 83 | . . 10 . . . . 73 . . . . . Launcher 6 | . . . . . 6 . . . . . . . Special 39 | . . . . . . . . . . . 8 31 Kinetic 1964 | 11 70 . 271 52 238 84 343 185 103 218 163 226 Thermal 115 | 11 . . . . . . 73 . . . . 31 Explosive 6 | . . . . . 6 . . . . . . . Electromagnetic 81 | . 51 30 . . . . . . . . . . Robot Hit Streak 16 | 11 15 10 9 8 9 8 10 10 12 16 9 15 Robot Miss Streak 9 | 2 9 2 5 4 5 4 6 6 5 3 4 8 Penetration Max 2 | . . . . . 2 . 2 1 . 1 . . Secondary Targets 43 | . 1 . 3 2 . 8 6 4 . 8 5 6 Max Gunslinging Chain 2 | . 1 . 1 1 . 2 1 1 . 1 2 2 Shots Hit Robots 1230 | 13 75 24 133 26 141 42 206 91 53 128 104 194 Core Hits 582 | 8 37 13 59 17 44 29 96 37 18 59 42 123 Critical Kills 24 | . . . . . 4 . 6 3 . 11 . . Critical Parts Destroyed 45 | . . . 1 . 9 1 7 4 . 20 3 . Critical Strikes 74 | . . . 1 . 15 1 13 7 . 31 3 3 Destroy 69 | . . . 1 . 13 1 13 7 . 31 3 . Smash 2 | . . . . . 2 . . . . . . . Sever 2 | . . . . . . . . . . . . 2 Impale 1 | . . . . . . . . . . . . 1 Melee Attacks 62 | . . . . . 12 9 1 10 . 1 . 29 Impact 8 | . . . . . 8 . . . . . . . Slashing 28 | . . . . . . 9 1 10 . 1 . 7 Piercing 22 | . . . . . . . . . . . . 22 Sneak Attacks 13 | . . . . . 4 9 . . . . . . Combat Hostiles . | . . . . . . . . . . . . . Follow-up Attacks . | . . . . . . . . . . . . . Damage Inflicted 22232 | 167 1011 429 2091 420 3009 1187 3713 1928 870 2365 1688 3354 Guns 18820 | 167 925 268 2040 420 2055 541 2813 1928 870 2365 1688 2740 Cannons 1061 | . . 161 . . . . 900 . . . . . Explosions 482 | . 86 . . . 396 . . . . . . . Melee 1486 | . . . . . 558 646 . . . . . 282 Ramming 51 | . . . 51 . . . . . . . . . Kinetic 18050 | 119 471 . 2040 420 2055 541 2813 1928 870 2365 1688 2740 Thermal 1366 | 48 86 . . . . . 900 . . . . 332 Explosive 396 | . . . . . 396 . . . . . . . Electromagnetic 883 | . 454 429 . . . . . . . . . . Impact 558 | . . . . . 558 . . . . . . . Slashing 646 | . . . . . . 646 . . . . . . Piercing 282 | . . . . . . . . . . . . 282 Highest Corruption 14 | . . . 2 2 2 2 3 4 4 9 9 14 Average Corruption 4 | . . . 2 2 2 2 3 3 4 7 9 12 Corruption Purged . | . . . . . . . . . . . . . Corruption Blocked . | . . . . . . . . . . . . . Effects 304 | . . . 36 11 34 13 22 33 7 50 25 73 Message Errors 68 | . . . 8 5 10 4 4 9 1 10 5 12 Matter Fused 81 | . . . 12 3 8 5 7 8 1 8 9 20 Heat Flow Errors 44 | . . . 8 . 5 2 2 4 2 7 3 11 Energy Discharges 27 | . . . 1 1 2 1 1 7 3 4 1 6 Parts Rejected 1 | . . . . . . . . . . 1 . . Parts Fused 3 | . . . . . . . . 1 . 1 . 1 Data Loss (minor) 37 | . . . 4 1 5 . 2 1 . 10 3 11 Data Loss (major) 14 | . . . 1 . 1 1 2 1 . 2 2 4 Misfires 10 | . . . . . . . 1 2 . 4 . 3 Alerts 11 | . . . 1 1 3 . 2 . . 2 1 1 Weapon Failures 8 | . . . 1 . . . 1 . . 1 1 4 Overload Shots . | . . . . . . . . . . . . . Overflow Damage 441 | . 10 1 18 . 274 95 17 . . . . 26 Projectiles 37 | . . 1 . . 17 . 17 . . . . 2 Explosions 37 | . 10 . . . 27 . . . . . . . Melee 367 | . . . 18 . 230 95 . . . . . 24 Knockbacks 3 | . . . . . 3 . . . . . . . Impact 2 | . . . . . 2 . . . . . . . Kinetic . | . . . . . . . . . . . . . Secondary 1 | . . . . . 1 . . . . . . . Self-Inflicted Damage 149 | . 39 . 25 . 85 . . . . . . . Shots 3 | . 1 . . . 2 . . . . . . . Rammed 2 | . . . 2 . . . . . . . . . Targets Rammed 2 | . . . 2 . . . . . . . . . Kicked . | . . . . . . . . . . . . . Crushed . | . . . . . . . . . . . . . Highest Temperature 417 | 27 132 312 333 106 323 205 324 317 278 417 214 360 Average Temperature 89 | 12 28 112 82 38 166 53 82 94 79 112 75 77 Received Heat Transfer 2255 | . 108 24 156 12 80 . 531 105 108 234 288 609 Effects 9 | . . . 2 . 4 . . 1 . 2 . . Energy Bleed 4 | . . . . . 2 . . . . 2 . . Interference 4 | . . . 2 . 2 . . . . . . . Matter Decay 1 | . . . . . . . . 1 . . . . Siege Activations . | . . . . . . . . . . . . . Martial Activations . | . . . . . . . . . . . . . Shielding Activations . | . . . . . . . . . . . . . Robots Disrupted . | . . . . . . . . . . . . . Combat Hostiles . | . . . . . . . . . . . . . Robots Corrupted 2 | . . . 1 . 1 . . . . . . . Combat Hostiles . | . . . . . . . . . . . . . Parts Fried 13 | . 2 1 3 . 4 . . 3 . . . . Impact Corruptions 6 | . . . 1 . 5 . . . . . . . Robots Melted . | . . . . . . . . . . . . . Combat Hostiles . | . . . . . . . . . . . . . Parts Melted 2 | . . . . . . . . 2 . . . . Heat Transferred 2751 | 148 50 . . . . . 1443 . . . . 1110 Parts Sabotaged . | . . . . . . . . . . . . . Parts Stolen . | . . . . . . . . . . . . . Parts Stripped . | . . . . . . . . . . . . . Power Chain Reactions 1 | . 1 . . . . . . . . . . . Alert | -11 -10 -10 -9 -9 -9 -8 -8 -8 -8 -8 -8 -8 ------- Run | Yrd Mat Min Mat Min Exi Min Mat Gar Mat Gar Mat Gar Maximum Alert Level 4 | . . . 1 . . . 2 4 3 4 3 4 Low Security (%) 40 | 100 100 100 17 100 . 100 48 . . . . . Level 1 18 | . . . 82 . . . 16 4 . . . 2 Level 2 15 | . . . . . . . 34 25 8 29 53 28 Level 3 12 | . . . . . . . . 23 91 23 46 38 Level 4 11 | . . . . . . . . 45 . 47 . 31 Level 5 . | . . . . . . . . . . . . . High Security . | . . . . . . . . . . . . . Max Security . | . . . . . . . . . . . . . Peak Influence 1588 | 10 154 64 377 147 . 124 589 1438 760 1588 830 1293 Initial 774 | . . 36 . 97 . . 19 373 700 451 774 385 Average 419 | 2 65 10 246 31 . 49 251 983 723 969 684 886 Influence Increases 7451 | 35 545 130 918 229 . 430 1158 1185 195 1177 471 978 Destroy 0b10 Robot/C 4460 | . 320 100 480 180 . 280 800 620 120 700 320 540 Destroy 0b10 Robot/NC 450 | 35 45 10 110 15 . 80 75 . 20 5 40 15 Destroy Leader 730 | . 78 20 140 30 . 40 214 20 54 30 74 30 Allied During Kill 233 | . . . 85 4 . . . 141 . . . 3 Successful Hack 128 | . 10 . 39 . . . 16 28 . 30 5 . Select Force Hacks 60 | . 60 . . . . . . . . . . . Disable Machine 120 | . . . 45 . . . 15 15 . . 30 15 Anti-Garrison Action 850 | . . . . . . . . 250 . 300 . 300 Destroy Structure 105 | . 2 . 4 . . . 23 36 1 7 2 30 Partial Spotted 15 | . . . . . . . . . . 15 . . Lose Combat Pursuer 300 | . 30 . 15 . . 30 15 75 . 90 . 45 Influence Decreases 6168 | 35 450 225 667 480 . 379 634 322 938 284 1466 288 Entered New Map 2451 | . . 59 . 154 . . 32 202 738 244 814 208 Time Decay 3047 | 35 440 166 607 306 . 379 582 . 190 . 342 . Lost Part 140 | . 10 . . . . . 20 . 10 40 . 60 Lost Ally 230 | . . . 60 20 . . . 120 . . 10 20 Purge Threat 300 | . . . . . . . . . . . 300 . Squads Dispatched 22 | . 5 . 4 1 . . 8 . 1 . 3 . Investigation 6 | . 2 . 2 . . . 2 . . . . . Extermination . | . . . . . . . . . . . . . Reinforcement 12 | . 3 . 2 . . . 5 . . . 2 . Assault 2 | . . . . 1 . . 1 . . . . . Garrison 2 | . . . . . . . . . 1 . 1 . Intercept . | . . . . . . . . . . . . . Searches Triggered . | . . . . . . . . . . . . . Construction Impeded 2 | . . . . . . . 1 . . . 1 . Haulers Reinforced . | . . . . . . . . . . . . . Active Scanning Responses . | . . . . . . . . . . . . . Cargo Convoy Interrupts . | . . . . . . . . . . . . . Stealth | -11 -10 -10 -9 -9 -9 -8 -8 -8 -8 -8 -8 -8 --------- Run | Yrd Mat Min Mat Min Exi Min Mat Gar Mat Gar Mat Gar Distress Signals 13 | . 2 . 2 1 . . 3 . 2 . 3 . Communications Jammed . | . . . . . . . . . . . . . Distress Signals . | . . . . . . . . . . . . . Times Spotted 307 | . 38 5 40 7 17 16 56 34 8 36 20 30 Peak Tracking Total 9 | . 7 3 5 2 9 4 7 4 2 8 5 7 Tactical Retreats 17 | . 2 . 1 . 3 1 1 2 . 6 . 1 Traps | -11 -10 -10 -9 -9 -9 -8 -8 -8 -8 -8 -8 -8 ------- Run | Yrd Mat Min Mat Min Exi Min Mat Gar Mat Gar Mat Gar Traps Triggered 25 | . 1 . 3 . . . 1 7 1 6 . 6 Indirectly . | . . . . . . . . . . . . . Trap Hack Attempts . | . . . . . . . . . . . . . Triggered . | . . . . . . . . . . . . . Disarmed . | . . . . . . . . . . . . . Reprogrammed . | . . . . . . . . . . . . . Reused . | . . . . . . . . . . . . . Traps Extracted 5 | . . . . 5 . . . . . . . . Installed . | . . . . . . . . . . . . . Triggered . | . . . . . . . . . . . . . Most Traps Carried 5 | . . . . 5 5 5 5 5 5 5 5 5 Machines | -11 -10 -10 -9 -9 -9 -8 -8 -8 -8 -8 -8 -8 ---------- Run | Yrd Mat Min Mat Min Exi Min Mat Gar Mat Gar Mat Gar Machines Disabled 32 | . . . 3 . 16 . 1 3 . 2 2 5 Max in Single Turn 2 | . . . 1 . 2 . 1 1 . 1 1 1 Garrison Relay 7 | . . . . . . . . 3 . 1 . 3 Phase Generator 3 | . . . . . . . . 1 . 1 . 1 Machines Repaired . | . . . . . . . . . . . . . Machines Dismantled 5 | . . . . . . . . 2 . 1 . 2 Machines Sabotaged . | . . . . . . . . . . . . . Overloaded Fab Kills . | . . . . . . . . . . . . . Hacking | -11 -10 -10 -9 -9 -9 -8 -8 -8 -8 -8 -8 -8 --------- Run | Yrd Mat Min Mat Min Exi Min Mat Gar Mat Gar Mat Gar Machines Accessed 47 | . 7 1 13 . 2 . 11 4 1 3 4 1 Terminals 31 | . 5 . 9 . . . 7 4 . 3 2 1 Fabricators . | . . . . . . . . . . . . . Repair Stations 3 | . . . 1 . . . 1 . . . 1 . Recycling Units 3 | . 2 . 1 . . . . . . . . . Scanalyzers 4 | . . . 2 . . . 2 . . . . . Garrison Access 3 | . . . . . . . 1 . 1 . 1 . Total Hacks 134 | . 22 1 40 . 4 . 34 9 2 7 12 3 Successful 67 | . 11 1 22 . 4 . 17 2 1 2 7 . Failed 65 | . 10 . 17 . . . 17 7 1 5 5 3 Catastrophic 19 | . 2 . 8 . . . 3 . . 3 2 1 Database Lockouts 2 | . 1 . 1 . . . . . . . . . Manual 61 | . 18 . 17 . 1 . 18 . 1 . 6 . Terminals 93 | . 19 . 26 . . . 20 9 . 7 9 3 Fabricators . | . . . . . . . . . . . . . Repair Stations 10 | . . . 3 . . . 5 . . . 2 . Recycling Units 4 | . 3 . 1 . . . . . . . . . Scanalyzers 16 | . . . 10 . . . 6 . . . . . Garrison Access 6 | . . . . . . . 3 . 2 . 1 . Terminal Hacks 27 | . 3 1 8 . 4 . 3 2 . 2 4 . Record 3 | . . . . . 3 . . . . . . . Part Schematic 3 | . . . 2 . . . 1 . . . . . Robot Schematic 1 | . 1 . . . . . . . . . . . Prototype ID Bank 3 | . 1 . 2 . . . . . . . . . Open Door 1 | . . 1 . . . . . . . . . . Branch Access Points 1 | . . . 1 . . . . . . . . . Emergency Access Points 1 | . . . . . . . . . . 1 . . Terminal Index 1 | . . . 1 . . . . . . . . . Unreport Threat 2 | . . . . . . . . . . . 2 . Locate Traps 4 | . 1 . 1 . . . 2 . . . . . Hauler Manifests 1 | . . . . . . . . . . . 1 . Zone Layout 2 | . . . 1 . . . . . . . 1 . Garrison Registry 1 | . . . . . . . . 1 . . . . Patrol Navigation 1 | . . . . . . . . 1 . . . . Security Stations 1 | . . . . . . . . . . 1 . . Proto ID Catalog 1 | . . . . . 1 . . . . . . . Fabricator Hacks . | . . . . . . . . . . . . . Repair Station Hacks 7 | . . . 1 . . . 4 . . . 2 . Scan Component 4 | . . . 1 . . . 2 . . . 1 . Repair 3 | . . . . . . . 2 . . . 1 . Recycling Unit Hacks 1 | . 1 . . . . . . . . . . . Retrieve Components 1 | . 1 . . . . . . . . . . . Scanalyzer 12 | . . . 8 . . . 4 . . . . . Insert Component 6 | . . . 4 . . . 2 . . . . . Analyze 6 | . . . 4 . . . 2 . . . . . Garrison Access Hacks 3 | . . . . . . . 1 . 1 . 1 . Unlock Access 3 | . . . . . . . 1 . 1 . 1 . Unauthorized Hacks 16 | . 7 . 4 . . . 5 . . . . . Terminals 14 | . 5 . 4 . . . 5 . . . . . Track 1 | . 1 . . . . . . . . . . . Operators 1 | . 1 . . . . . . . . . . . Skim 12 | . 3 . 4 . . . 5 . . . . . Fabricators . | . . . . . . . . . . . . . Repair Stations . | . . . . . . . . . . . . . Recycling Units 2 | . 2 . . . . . . . . . . . Tunnel 2 | . 2 . . . . . . . . . . . Scanalyzers . | . . . . . . . . . . . . . Garrison Access . | . . . . . . . . . . . . . Data Cores Recovered 1 | . . . 1 . . . . . . . . . Used 1 | . . . 1 . . . . . . . . . Hacking Detections 39 | . 5 . 11 . . . 11 4 1 3 3 1 Full Trace Events 7 | . . . 3 . . . 1 1 . 2 . . Feedback Events . | . . . . . . . . . . . . . Feedback Blocked . | . . . . . . . . . . . . . Robot Schematics Acquired 1 | . 1 . . . . . . . . . . . Robots Built . | . . . . . . . . . . . . . Authchips . | . . . . . . . . . . . . . Time . | . . . . . . . . . . . . . Total Robot Build Rating . | . . . . . . . . . . . . . Part Schematics Acquired 7 | . . . 5 . . . 2 . . . . . Parts Built . | . . . . . . . . . . . . . Authchips . | . . . . . . . . . . . . . Time . | . . . . . . . . . . . . . Total Part Build Rating . | . . . . . . . . . . . . . Parts Repaired 3 | . . . . . . . 2 . . . 1 . Time 142 | . . . . . . . 110 . . . 32 . Parts Recycled . | . . . . . . . . . . . . . Recycled Matter . | . . . . . . . . . . . . . Retrieved Matter . | . . . . . . . . . . . . . Retrieved Components 3 | . 3 . . . . . . . . . . . Parts Scanalyzed 5 | . . . 4 . . . 1 . . . . . Part Schematics Acquired 4 | . . . 3 . . . 1 . . . . . Parts Damaged 2 | . . . 1 . . . 1 . . . . . Bothacking | -11 -10 -10 -9 -9 -9 -8 -8 -8 -8 -8 -8 -8 ------------ Run | Yrd Mat Min Mat Min Exi Min Mat Gar Mat Gar Mat Gar Used RIF Installer 2 | . . . . . . . . 1 . 1 . . Robot Detection 1 | . . . . . . . . . . 1 . . Robots Hacked 8 | . . . . . 4 . . . . . 4 . Non-combat 7 | . . . . . 3 . . . . . 4 . Combat 1 | . . . . . 1 . . . . . . . Robot Hacks Applied 8 | . . . . . 4 . . . . . 4 . parse_system 4 | . . . . . 4 . . . . . . . map_route 1 | . . . . . . . . . . . 1 . formatsys_low 3 | . . . . . . . . . . . 3 . Relay Couplers Released 28 | . . . . . . . . 13 . 4 . 11 Machine Destruction 28 | . . . . . . . . 13 . 4 . 11 Attached 3 | . . . . . . . . . . . 1 2 Fabnet Peak Effective % . | . . . . . . . . . . . . . Robots Rewired 10 | . . . . . . . . 10 . . . . Allies Hacked . | . . . . . . . . . . . . . Hacks Repelled . | . . . . . . . . . . . . . Allies | -11 -10 -10 -9 -9 -9 -8 -8 -8 -8 -8 -8 -8 -------- Run | Yrd Mat Min Mat Min Exi Min Mat Gar Mat Gar Mat Gar Total Allies 20 | . . 5 . 1 . . . 10 . . 3 1 Largest Group 6 | . . 5 5 1 . . . 6 . . 3 1 Highest-Rated Group 157 | . . 81 81 31 . . . 157 . . 34 20 Highest-Rated Ally 34 | . . 31 31 31 . . . 34 . . 12 20 Total Orders . | . . . . . . . . . . . . . Ally Attacks 130 | . . . 56 10 . . . 61 . . . 3 Total Damage 2310 | . . . 720 147 . . . 1397 . . . 46 Kills 23 | . . . 10 3 . . . 10 . . . . Allies Corrupted 1 | . . . . . . . . . . . . 1 Allies Melted . | . . . . . . . . . . . . . Intel | -11 -10 -10 -9 -9 -9 -8 -8 -8 -8 -8 -8 -8 ------- Run | Yrd Mat Min Mat Min Exi Min Mat Gar Mat Gar Mat Gar Active Infowar (turns) 885 | 39 846 . . . . . . . . . . . Seismic 885 | 39 846 . . . . . . . . . . . Robot Analysis Total . | . . . . . . . . . . . . . Derelict Logs Recovered 3 | . . 1 . 2 . . . . . . . . Drone Launches . | . . . . . . . . . . . . . Drone Recoveries . | . . . . . . . . . . . . . Exploration | -11 -10 -10 -9 -9 -9 -8 -8 -8 -8 -8 -8 -8 ------------- Run | Yrd Mat Min Mat Min Exi Min Mat Gar Mat Gar Mat Gar Turns Passed 18949 | 127 1291 1153 2937 1229 2988 1110 2294 1514 391 1390 772 1753 Spaces Moved 10331 | 92 964 680 1920 601 1765 674 1039 767 171 591 336 731 Core 1 | 1 . . . . . . . . . . . . Treads . | . . . . . . . . . . . . . Legs . | . . . . . . . . . . . . . Wheels 10330 | 91 964 680 1920 601 1765 674 1039 767 171 591 336 731 Hover . | . . . . . . . . . . . . . Flight . | . . . . . . . . . . . . . Fastest Speed 50 | 50 80 100 100 150 135 150 150 150 150 150 150 150 Average Speed 141 | 79 97 100 136 150 145 150 150 150 157 184 164 164 Slowest Speed 240 | 80 100 100 150 150 210 150 165 150 165 240 165 165 Overloaded Moves . | . . . . . . . . . . . . . Propulsion Burnouts . | . . . . . . . . . . . . . Robots Hopped . | . . . . . . . . . . . . . Potential Cave-ins . | . . . . . . . . . . . . . Cave-ins Triggered . | . . . . . . . . . . . . . Exploration Rate (%) 72 | 4 97 98 94 98 91 96 81 84 17 95 31 51 Regions Visited 12 Branch Regions 4 Pre-discovered Areas 6 | . 2 . . 1 1 . 2 . . . . . Known Exits Taken 5 | . . . 1 1 . . 1 . 1 . 1 . Unknown Exits Taken 5 | 1 1 1 . . 1 1 . . . . . . Scrap Searched 5 | . . 2 . 2 . 1 . . . . . . Spaces Dug 12 | . . . . . . . 1 5 . 1 . 5 Terrain Destroyed 105 | . 2 . . . 59 . 17 6 . 16 . 5 Melee 12 | . . . . . . . 1 5 . 1 . 5 Projectile 40 | . . . . . 14 . 16 1 . 9 . . AOE 47 | . 2 . . . 45 . . . . . . . Terrain Rammed . | . . . . . . . . . . . . . Walls Destroyed . | . . . . . . . . . . . . . Machines Disabled . | . . . . . . . . . . . . . Actions | -11 -10 -10 -9 -9 -9 -8 -8 -8 -8 -8 -8 -8 --------- Run | Yrd Mat Min Mat Min Exi Min Mat Gar Mat Gar Mat Gar Total 13213 | 121 1210 1126 2091 895 2012 716 1536 984 232 777 489 1024 Wait 1349 | . 110 410 13 276 3 2 301 19 17 59 75 64 Move 10321 | 91 963 679 1919 600 1764 673 1039 766 170 590 336 731 Hop . | . . . . . . . . . . . . . Pick Up 207 | 11 27 7 31 1 52 3 29 4 5 6 10 21 Fast Attach 19 | 5 1 2 3 . 1 . 4 . . 2 . 1 Attach 43 | 2 3 1 3 . 17 . 5 1 2 3 2 4 Detach . | . . . . . . . . . . . . . Swap 155 | . 14 3 19 3 9 5 21 12 7 7 8 47 Drop 193 | 1 25 9 33 1 43 3 32 7 5 4 9 21 Fire 678 | 11 67 15 68 13 111 21 104 48 26 56 49 89 Melee 62 | . . . . . 12 9 1 10 . 1 . 29 Ram 2 | . . . 2 . . . . . . . . . Kick . | . . . . . . . . . . . . . Crush . | . . . . . . . . . . . . . Escape Stasis 88 | . . . . . . . . 48 . 40 . . Rewire 53 | . . . . 1 . . . 52 . . . . Trap . | . . . . . . . . . . . . . Miscellaneous 43 | . . . . . . . . 17 . 9 . 17 Route ------- -11/Scrapyard -10/Materials (discovered 4 exits: *Mat x3 / *Min) -10/Mines (discovered 2 exits: *Mat x2) -9/Materials (discovered 5 exits: *Mat x3 / *Min x2) -9/Mines (discovered 3 exits: *Mat x2 / *Exi) -9/Exiles (discovered 2 exits: [*Min x2]) -8/Mines (discovered 2 exits: *Mat x2) -8/Materials (discovered 4 exits: [*Fac x3] / Gar) -8/Garrison (discovered 4 exits: *Mat x4) -8/Materials -8/Garrison (discovered 4 exits: [*Fac x3] / *Mat) -8/Materials -8/Garrison (discovered 1 exit: [*Fac]) History --------- Turn | Location | Event 26 | -11/Scrapyard | Discovered new exit (range 16) 128 | -11/Scrapyard | Entered Materials 265 | -10/Materials | Discovered new exit (range 14) 313 | -10/Materials | Build established: Mutant 354 | -10/Materials | Discovered new exit (range 14) 565 | -10/Materials | Central database locked down 654 | -10/Materials | Discovered new exit (range 10) 937 | -10/Materials | Discovered new exit (range 15) 1419 | -10/Materials | Entered Mines 1526 | -10/Mines | Found DCF Scrap (13 items) 1611 | -10/Mines | Discovered new exit (range 9) 1722 | -10/Mines | Met a Derelict who couldn't figure out how to use a Trap Extractor 2209 | -10/Mines | Discovered new exit (range 6) 2219 | -10/Mines | Core integrity fell below 50% 2272 | -10/Mines | Learned Materials stockpile data 2333 | -10/Mines | Found a damaged Exp. Sensor Array with a note attached 2335 | -10/Mines | Found Prototype Device 2335 | -10/Mines | Identified Exp. Sensor Array 2538 | -10/Mines | Assisted by bots powering up and referring to "LRC-V3" 2572 | -10/Mines | Entered Materials 2572 | -9/Materials | Accompanied by 5 allies 2572 | -9/Materials | Evolved 2 slots: Weapon x2 2577 | -9/Materials | Led the pair of lost Derelicts to an unsafe place 2863 | -9/Materials | Build established: Tank 2889 | -9/Materials | Discovered new exit (range 14) 2936 | -9/Materials | Identified exit to Mines 3839 | -9/Materials | Discovered new exit (range 5) 4616 | -9/Materials | Discovered new exit (range 10) 4966 | -9/Materials | Central database locked down 5509 | -9/Materials | Entered Mines 5510 | -9/Mines | Assembled infested the area 5941 | -9/Mines | Identified exit to Exiles 5955 | -9/Mines | Learned location of Storage (-7) 5960 | -9/Mines | Received a Rocket Launcher from a helpful Derelict 6053 | -9/Mines | Met a Derelict testing a Signal Generator 6221 | -9/Mines | Found a Scrap Suit stashed away for nefarious purposes 6374 | -9/Mines | Deemed a non-threat by the Exiles lab entrance 6436 | -9/Mines | Discovered new exit (range 11) 6455 | -9/Mines | Found a hidden stash of uninstalled traps 6536 | -9/Mines | Discovered new exit (range 7) 6738 | -9/Mines | Entered Exiles 6776 | -9/Exiles | Met 8R-AWN 6801 | -9/Exiles | Met EX-HEX 6895 | -9/Exiles | Met EX-DEC 6931 | -9/Exiles | Learned location of Zion (-6) 6981 | -9/Exiles | Discovered new exit (range 10) 7062 | -9/Exiles | Build established: Mutant 7095 | -9/Exiles | Visited The Gauntlet 7482 | -9/Exiles | Met EX-BIN 7717 | -9/Exiles | Aligned with FarCom system 7720 | -9/Exiles | Given EX-Vault access code 7751 | -9/Exiles | Opened EX-Vault 7762 | -9/Exiles | Found Latent Energy Streamer 7767 | -9/Exiles | Found 0b10 Alert Chip 7770 | -9/Exiles | Found Cloak of Protection 7796 | -9/Exiles | Warned to stay clear of 0b10 Research branches 8153 | -9/Exiles | Discovered new exit (range 14) 8593 | -9/Exiles | Attacked by the Exiles 8768 | -9/Exiles | Core integrity fell below 50% 8786 | -9/Exiles | Lost 6 parts (2n4w) 8857 | -9/Exiles | Destroyed 8R-AWN 8870 | -9/Exiles | Found 8R-AWN's Boregun 8875 | -9/Exiles | Found 8R-AWN's Boregun 8896 | -9/Exiles | Found Exp. Targeting Computer 9025 | -9/Exiles | Build established: Gunner 9296 | -9/Exiles | Destroyed EX-BIN 9343 | -9/Exiles | Destroyed EX-DEC 9371 | -9/Exiles | Destroyed EX-HEX 9414 | -9/Exiles | Found Deploy-a-Sentry 9418 | -9/Exiles | Found Exp. Core Analyzer 9726 | -9/Exiles | Stole four prototypes: 0b10 Alert Chip, Cloak of Protection, Latent Energy Streamer, Deploy-a-Sentry 9726 | -9/Exiles | Entered Mines 9729 | -8/Mines | Discovered new exit (range 14) 10014 | -8/Mines | Build established: Tank 10396 | -8/Mines | Discovered new exit (range 7) 10836 | -8/Mines | Entered Materials 10836 | -8/Materials | Evolved 2 slots: Utility x2 11635 | -8/Materials | Build established: Gunner 11770 | -8/Materials | Discovered new exit (range 5) 12251 | -8/Materials | Discovered new exit (range 16) 12448 | -8/Materials | Build established: Tank 12627 | -8/Materials | Repaired Broken Rnf. Fission Core 12660 | -8/Materials | Repaired Arm. Wheel 12836 | -8/Materials | First assault squad dispatched 12859 | -8/Materials | Discovered new exit (range 7) 12995 | -8/Materials | Identified exit to Garrison 13115 | -8/Materials | Learned location of 2 exits from Factory 13130 | -8/Materials | Entered Garrison 13199 | -8/Garrison | Phase Generator disabled 13320 | -8/Garrison | Triggered checkpoint 13355 | -8/Garrison | Garrison Relay disabled 13572 | -8/Garrison | Triggered checkpoint 13668 | -8/Garrison | Triggered checkpoint 13679 | -8/Garrison | Triggered checkpoint 13739 | -8/Garrison | Lost 3 allies 13873 | -8/Garrison | Discovered new exit (range 10) 13902 | -8/Garrison | Triggered checkpoint 13950 | -8/Garrison | Triggered checkpoint 13950 | -8/Garrison | Garrison Relay disabled 14238 | -8/Garrison | Triggered checkpoint 14284 | -8/Garrison | Lost 5 allies 14324 | -8/Garrison | Triggered checkpoint 14424 | -8/Garrison | Discovered new exit (range 66) 14424 | -8/Garrison | Discovered new exit (range 12) 14424 | -8/Garrison | Discovered new exit (range 41) 14424 | -8/Garrison | Discovered new exit (range 55) 14593 | -8/Garrison | Build established: Scavenger-Tank 14622 | -8/Garrison | Installed Relay Interface Framework 14644 | -8/Garrison | Entered Materials 14930 | -8/Materials | Garrison activated, responded to threat 15018 | -8/Materials | Identified exit to Garrison 15035 | -8/Materials | Entered Garrison 15095 | -8/Garrison | Phase Generator disabled 15211 | -8/Garrison | Learned Factory security intel 15233 | -8/Garrison | Triggered checkpoint 15252 | -8/Garrison | Build established: Scavenger-Gunner 15304 | -8/Garrison | Triggered checkpoint 15443 | -8/Garrison | Triggered checkpoint 15519 | -8/Garrison | Garrison Relay disabled 15554 | -8/Garrison | Discovered new exit (range 7) 15717 | -8/Garrison | Core integrity fell below 50% 15863 | -8/Garrison | Triggered checkpoint 15938 | -8/Garrison | Discovered new exit (range 8) 16044 | -8/Garrison | Triggered checkpoint 16193 | -8/Garrison | Discovered new exit (range 9) 16210 | -8/Garrison | Expanded RIF knowledge: Robot Detection 16261 | -8/Garrison | Triggered checkpoint 16332 | -8/Garrison | Lost 3 parts (1u2w) 16408 | -8/Garrison | Triggered checkpoint 16419 | -8/Garrison | Discovered new exit (range 3) 16425 | -8/Garrison | Entered Materials 16518 | -8/Materials | Repaired Arm. Wheel 17101 | -8/Materials | Garrison activated, responded to threat 17163 | -8/Materials | Destroyed 7 combat bots 17197 | -8/Materials | Identified exit to Garrison 17197 | -8/Materials | Entered Garrison 17269 | -8/Garrison | Rescued a captive Derelict 17313 | -8/Garrison | Triggered checkpoint 17331 | -8/Garrison | System corruption reached 10% 17335 | -8/Garrison | Core integrity fell below 20% 17440 | -8/Garrison | Garrison Relay disabled 17949 | -8/Garrison | Build established: Gunner 18073 | -8/Garrison | Triggered checkpoint 18171 | -8/Garrison | Found Powered Armor 18175 | -8/Garrison | Found Powered Armor 18178 | -8/Garrison | Found Powered Armor 18181 | -8/Garrison | Found Powered Armor 18425 | -8/Garrison | Triggered checkpoint 18456 | -8/Garrison | Garrison Relay disabled 18513 | -8/Garrison | Discovered new exit (range 15) 18609 | -8/Garrison | Phase Generator disabled 18677 | -8/Garrison | Build established: Scavenger-Gunner 18734 | -8/Garrison | Spotted B-75 Beast 18782 | -8/Garrison | Destroyed B-75 Beast 18808 | -8/Garrison | Lost 4 parts (1u3w) 18935 | -8/Garrison | Garrison Relay disabled 18950 | -8/Garrison | Destroyed by P-60 Hacker with Shock Rifle Last Messages --------------- 18792_ System corrupted: Heat flow error (+177). 18792_ Acquired 33 matter. 18795_ Triggered Alarm Trap. 18795_ An alarm sounds. 18808_ RF MQ=DPG RCSRC ROT8ITRGCNTS 18825_ System corrupted: Exp. Heat Sink fused. 18830_ Acquired Hvy. Assault Rifle. 18851_ System corrupted: Energy discharge (-111). 18872_ System corrupted: Matter fused (-9). 18892_ Acquired 6 matter. 18900_ Dropped Hcp. Matter Pod. 18901_ Extracted 200 matter. 18902_ Acquired Hcp. Matter Pod. 18925_ System corrupted: Heat flow error (+223). 18935_ Garrison Relay disabled. 18935_ Relay Coupler [Grunt] tumbles out of relay unit. 18935_ Relay Coupler [Swarmer] tumbles out of relay unit. 18935_ Relay Coupler [Specialist] tumbles out of relay unit. 18935_ Relay Coupler [Duelist] tumbles out of relay unit. 18949_ Enh. Autogun destroyed. Map ----- +----------------------------------------------------+ | | | | | | | | | | | | | | | | | | | ?????????????????????????????????????????????????? | | ?????????????????????????????????????????????????? | | ?????????????????????????????????????????????????? | | ?????????????????????????????????????????????????? | | ?????????????????????????????????????????????????? | | ?????????????????????????????????????????????????? | | ?????????????????????????????????????????????????? | | ?????????????????????????????????????????????????? | | ?????????????????????????????????????????????????? | | ?????????????????????????????????????????????????? | | ?????????????????????????????????????????????????? | | ????????????????????????########?????????????????? | | ???????????????????##???#! ""!"#?????????????????? | | ??????????????????## ??# !!"#?????????????????? | | ??????????????????# ## ! !#?????????????????? | | ##???????#####????# !#?????????????????? | | #???????#"""#????# # ##@ !#?????????????????? | | #???????# "#??????#???# !#?????????????????? | | #???????# "#???######## #####?????????????????? | | #???????# !"#???## # ## #?????????????????????? | | #???????# #???# # # #?????????????????????? | | #???????#!!"##### ## #?????????????????????? | | #???????# *=* # #?????????????????????? | | ##???????####### =# # #?????????????????????? | | ???????????????#!! # # # #?????????????????????? | | ???????????????## ### # ##????????????????????? | | ????????????????# #?# ### ;#????????????????????? | | ????###?????????# #?# #?#p ;#????????????????????? | | ##### ########### ### ### p#####?????????????????? | | ! * p #?????????????????? | | = #?????????????????? | | =! = #?????????????????? | | ##### ########### "## ###= # #?????????????????? | | ????# #?????????# ### #?#### #?????????????????? | | ????# #?????????# #?# #????# #?????????????????? | | ????# #?????????# ### ####?# #?????????????????? | | ????# #???###???# #?????????????????? | | ????# #???# #???# ########?# #?????????????????? | | ????# #?### ###?# #????????# #?????????????????? | | ????# #?# ! !!#?# #????????# #?????????????????? | | ##### #?# !!#?#=#????????# #?????????????????? | +----------------------------------------------------+ Best States ------------- Heat Dissipation 79 Energy Generation 19 Energy Capacity 310 Matter Stores 300 Matter Capacity 350 Sight Range 16 Terrain Scan Density 10 Armor Coverage 400 Propulsion Shielding 66 Evasion (%) 44 Targeting Accuracy 12 Target Analysis 6 Relay Coupler Types 1 Relay Coupler Value 18 Authchip Count 1 Trap Extractor Capacity 6 Item Schematics ----------------- Arm. Wheel | -9/Materials | Hacked Lgt. Assault Rifle | -9/Materials | Hacked Imp. Trap Extractor | -9/Materials | Scanalyzed Hvy. Assault Rifle | -9/Materials | Scanalyzed Hrd. Light Armor Plating | -9/Materials | Scanalyzed Rnf. Fission Core | -8/Materials | Scanalyzed Imp. Utility Shielding | -8/Materials | Hacked Robot Schematics ------------------ M-13 Machinist | -10/Materials | Hacked Fabricated ------------ Nothing Repaired ---------- Rnf. Fission Core | 73% | -8/Materials | Broken Arm. Wheel | 19% | -8/Materials Arm. Wheel | 19% | -8/Materials Alien Tech Used ----------------- None Achievements -------------- None Challenges ------------ None Game ------ Seed EnhancedControlRailgun Manual? 0 Play Time 01:54:23 Cumulative 1071.8 hours Start 2025.07.17 @ 00:36:57 End 2025.07.17 @ 02:29:09 Sessions 1 Manual Loads 0 Difficulty Rogue Special Mode None Game No. 532 Rogue 532 Adventurer 0 Explorer 0 Win Type - Total 23 Types 10/4/3/0/1/1/2/2/0/0 Lore% 89 Gallery% 89 Achievement% 83 Wizard Run 0 Options --------- Layout 0 ASCII 0 Keyboard 0 Movement Numpad Keybinds 0 Fullscreen 2 Font 24/Smallcaps Map View 76x50 Zoom Use 0% Tactical HUD 1 Map Filters NONE Filters SHIFT_HUE(315) Steam 1 RUN: 9211644a-2052-4584-9c9d-f39987ec1f7b